bitfinex/quotes_ETHUSD_20240710
["timestamp","ask_amount","ask_price","bid_price","bid_amount"]
[1720577655208,8.85672576,3063.2,3063.0,0.162]
[1720577656611,6.50072576,3063.2,3063.0,0.162]
[1720577657024,8.85672576,3063.2,3063.0,0.162]
[1720577657360,12.30272576,3063.2,3063.0,0.162]
[1720577657510,7.0684,3063.1,3063.0,0.162]
[1720577657853,10.12301996,3063.1,3063.0,0.162]
[1720577659746,6.67701996,3063.1,3063.0,0.162]
[1720577660057,6.12701996,3063.1,3063.0,0.162]
[1720577662154,3.05461996,3063.1,3063.0,0.162]
[1720577662355,0.05461996,3063.1,3063.0,0.162]
[1720577663324,3.05461996,3063.1,3063.0,0.162]
[1720577663530,6.05461996,3063.1,3063.0,0.162]
[1720577664051,6.39413906,3063.1,3063.0,0.162]
[1720577664651,7.08368416,3063.1,3063.0,0.162]
[1720577666131,3.74416506,3063.1,3063.0,0.162]
[1720577666466,0.05461996,3063.1,3063.0,0.162]
[1720577670343,3.0,3064.3,3063.0,0.162]
[1720577670543,3.0,3063.9,3063.0,0.162]
[1720577670778,0.04916381,3063.8,3063.0,0.41695825]
[1720577672972,0.04879948,3063.7,3063.0,0.41695825]
[1720577673304,3.0,3064.1,3063.0,0.41695825]
[1720577673462,0.04879948,3063.6,3063.0,0.41695825]
[1720577673793,0.04879948,3063.5,3063.0,0.41695825]
[1720577673997,3.0,3064.1,3063.0,0.41695825]
[1720577674153,0.04879948,3064.0,3063.0,0.41695825]
[1720577675257,0.60487995,3063.9,3063.0,0.41695825]
[1720577675565,6.0,3064.1,3063.0,0.41695825]
[1720577675982,0.04879948,3064.0,3063.0,0.41695825]
[1720577676586,0.04879948,3064.0,3063.1,2.4669]
[1720577676855,3.0,3065.5,3063.3,2.4669]
[1720577677053,3.0,3065.5,3063.5,2.4669]
[1720577677054,0.04562823,3064.9,3063.5,2.4669]
[1720577677293,3.0,3065.6,3063.7,2.4669]
[1720577677499,0.04075926,3064.8,3063.8,0.24669]
[1720577677707,0.34083821,3065.3,3063.8,0.24669]
[1720577677992,0.04090203,3065.2,3063.8,0.24669]
[1720577678359,0.04090203,3065.2,3063.9,0.06526335]
[1720577678554,0.04090203,3065.2,3063.9,0.34314869]
[1720577681209,0.04090203,3065.2,3064.0,2.2632]
[1720577681409,0.04090203,3065.2,3064.2,2.2632]
[1720577681703,3.26,3065.9,3064.3,2.32845481]
[1720577681903,3.60079019,3065.9,3064.3,2.32845481]
[1720577682114,3.39614819,3065.8,3064.4,0.23284548]
[1720577682611,3.0,3065.7,3064.4,0.23284548]
[1720577682999,0.03606917,3065.6,3064.4,0.23284548]
[1720577683982,2.356,3065.3,3064.3,2.2632]
[1720577684167,5.356,3065.3,3064.3,2.2632]
[1720577684367,0.03616517,3065.2,3064.3,2.2632]
[1720577686495,0.03616517,3065.2,3064.4,0.06526014]
[1720577686695,0.03616517,3065.2,3064.5,0.23284601]
[1720577686910,2.356,3065.7,3064.5,0.23284601]
[1720577686911,3.0,3065.5,3064.5,0.23284601]
[1720577687425,0.03378702,3065.4,3064.5,0.23284601]
[1720577688504,0.03378702,3065.4,3064.3,2.2632]
[1720577688505,3.0,3065.1,3064.3,2.2632]
[1720577689113,0.03378702,3065.0,3064.3,2.2632]
[1720577690617,2.356,3065.3,3064.3,2.2632]
[1720577690958,0.0337843,3065.2,3064.3,2.2632]
[1720577691166,8.802,3065.0,3063.7,9.8957]
[1720577691454,0.03376235,3064.9,3063.7,9.8957]
[1720577691630,3.58376235,3064.9,3063.7,9.8957]
[1720577692030,5.356,3064.6,3063.7,9.8957]
[1720577692361,5.356,3064.6,3063.7,7.47]
[1720577692362,0.56931294,3064.5,3063.7,7.47]
[1720577692561,0.56931294,3064.5,3063.3,2.4257]
[1720577692860,3.56931294,3064.5,3063.3,2.4257]
[1720577693560,2.356,3064.2,3063.3,2.4257]
[1720577693869,0.03355926,3064.1,3063.3,2.4257]
[1720577694033,3.03355926,3064.1,3063.3,2.4257]
[1720577694360,3.54331693,3064.1,3063.3,2.4257]
[1720577694529,3.03355926,3064.1,3063.3,2.4257]
[1720577696524,0.03355926,3064.1,3063.3,2.4257]
[1720577696921,3.0,3064.7,3063.3,2.4257]
[1720577697122,0.03348789,3064.0,3063.3,2.4257]
[1720577697318,0.34087317,3064.6,3063.3,2.4257]
[1720577697562,0.03348789,3063.9,3063.4,0.24257]
[1720577697761,0.34087317,3064.6,3063.4,0.24257]
[1720577698059,0.03348789,3064.5,3063.4,0.24257]
[1720577699268,3.03348789,3064.5,3063.4,0.24257]
[1720577699576,3.670924,3064.5,3063.4,0.24257]
[1720577699735,3.0,3064.4,3063.4,0.24257]
[1720577700166,0.03354828,3064.3,3063.3,2.4257]
[1720577700472,0.03354828,3064.3,3063.0,0.162]
[1720577700473,2.456,3064.2,3063.0,2.5289]
[1720577700673,0.03349888,3064.1,3063.0,2.5289]
[1720577700884,0.03349888,3064.1,3063.1,0.26405825]
[1720577701482,3.0,3064.4,3063.2,2.4564808]
[1720577701639,0.03338086,3064.0,3063.2,2.3912]
[1720577701836,0.34087317,3064.6,3063.2,2.3912]
[1720577702036,0.03336713,3064.5,3063.3,0.26552583]
[1720577702447,3.03336713,3064.5,3063.3,0.26552583]
[1720577702645,3.0,3064.4,3063.3,0.26552583]
[1720577702931,3.0,3064.4,3063.2,2.3912]
[1720577702932,2.36421929,3064.3,3063.2,2.3912]
[1720577704975,3.0,3063.9,3063.0,0.162]
[1720577705282,3.03337812,3063.8,3063.0,0.162]
[1720577705580,0.60333781,3063.7,3063.0,0.162]
[1720577705935,0.03331498,3063.6,3063.0,0.162]
[1720577706652,2.3294,3063.5,3063.0,0.162]
[1720577706857,0.03325732,3063.4,3063.0,0.162]
[1720577707259,0.60333781,3063.7,3063.0,0.162]
[1720577707460,0.03325732,3063.6,3063.0,0.162]
[1720577708149,2.3962,3064.3,3063.1,2.3942]
[1720577708351,14.06087317,3064.6,3063.1,2.3942]
[1720577708352,0.03307882,3063.5,3063.2,0.26214919]
[1720577708566,6.26,3064.5,3063.2,0.26214919]
[1720577708567,7.46,3064.4,3063.2,0.26214919]
[1720577708751,3.26,3064.5,3063.2,0.26214919]
[1720577708967,0.03317493,3064.3,3063.2,0.26214919]
[1720577709139,3.26,3064.5,3063.3,0.26563492]
[1720577709341,0.03317493,3064.2,3063.3,0.26563492]
[1720577709556,3.26,3064.5,3063.3,0.26563492]
[1720577709884,3.0,3064.4,3063.3,0.26563492]
[1720577710038,0.03317493,3064.3,3063.3,0.26563492]
[1720577710647,3.0,3064.1,3063.0,0.162]
[1720577710864,0.03323532,3064.0,3063.0,0.162]
[1720577711062,2.33453532,3064.0,3063.0,0.162]
[1720577711240,3.0,3063.7,3063.0,0.162]
[1720577711452,3.33339459,3063.6,3063.0,0.162]
[1720577712480,3.03339459,3063.6,3063.0,0.162]
[1720577712640,0.03339459,3063.6,3063.0,0.162]
[1720577712840,5.4053,3064.3,3063.0,0.162]
[1720577712841,3.34090576,3064.2,3063.0,0.162]
[1720577713278,0.03335616,3064.1,3063.0,0.162]
[1720577714315,0.78382573,3064.1,3063.0,0.162]
[1720577714609,0.78393838,3064.1,3063.1,0.26200825]
[1720577714809,0.78393838,3064.1,3063.0,0.162]
[1720577715623,3.0,3063.8,3063.0,0.162]
[1720577715773,0.75058222,3063.7,3063.0,0.162]
[1720577715975,3.0,3063.8,3063.0,0.162]
[1720577716199,0.03335616,3063.7,3063.0,0.162]
[1720577717503,3.03335616,3063.7,3063.0,0.162]
[1720577717831,3.63669178,3063.7,3063.0,0.162]
[1720577720143,0.7498732,3063.6,3063.0,0.162]
[1720577720296,3.63669178,3063.7,3063.0,0.162]
[1720577720493,3.0,3063.4,3063.0,0.162]
[1720577720695,3.03335616,3063.3,3063.0,0.162]
[1720577721007,0.44202205,3063.2,3063.0,0.162]
[1720577721208,0.03324632,3063.1,3063.0,0.162]
[1720577724353,0.03324632,3063.1,3062.3,7.47]
[1720577724354,3.0,3062.8,3062.3,7.47]
[1720577724632,3.0,3062.8,3061.6,2.4763]
[1720577724633,0.03289208,3062.7,3061.6,2.4763]
[1720577724843,3.88289208,3062.7,3061.6,2.4763]
[1720577725193,3.33289208,3062.7,3061.6,2.4763]
[1720577726953,3.33289208,3062.7,3061.7,0.06531987]
[1720577727114,3.03289208,3062.7,3061.8,2.4763]
[1720577727439,0.03289208,3062.7,3061.8,2.54160853]
[1720577727599,3.0,3063.3,3061.8,2.54160853]
[1720577727800,0.03270529,3063.2,3061.9,0.25416085]
[1720577728020,0.03270529,3063.2,3062.0,0.06530684]
[1720577728253,0.03270529,3063.2,3062.1,2.54160675]
[1720577728597,0.03270529,3063.2,3062.1,2.4763]
[1720577728913,0.0328646,3063.1,3062.1,2.4763]
[1720577729134,0.0328646,3063.1,3062.2,0.24763]
[1720577729447,3.26,3063.7,3062.2,0.24763]
[1720577730215,0.03287009,3063.6,3062.4,2.4995]
[1720577731611,0.06482037,3063.6,3062.4,2.4995]
[1720577732679,0.06482037,3063.6,3062.5,0.06529461]
[1720577732975,0.06482037,3063.6,3062.4,2.4995]
[1720577733193,0.06482037,3063.6,3062.5,0.31524611]
[1720577735364,0.06482037,3063.6,3062.5,0.24995]
[1720577735546,2.4748,3063.5,3062.5,0.24995]
[1720577735993,0.06508953,3063.4,3062.5,0.24995]
[1720577736474,0.81540527,3063.4,3062.5,0.24995]
[1720577737070,1.4444258,3063.4,3062.5,0.24995]
[1720577738074,0.81540527,3063.4,3062.5,0.24995]
[1720577738237,0.06508953,3063.4,3062.6,0.06529344]
[1720577738664,0.06504835,3063.3,3062.6,0.06529344]
[1720577739084,0.06504835,3063.2,3062.5,0.24995]
[1720577739379,0.74988307,3063.5,3062.6,0.274945]
[1720577739554,0.06504835,3063.1,3062.6,0.274945]
[1720577739759,0.74988307,3063.5,3062.6,0.274945]
[1720577740097,10.46,3064.2,3062.6,0.34023454]
[1720577740386,0.81487327,3063.9,3062.6,0.34023454]
[1720577740558,3.81487327,3063.9,3062.6,0.34023454]
[1720577740751,0.74982492,3063.8,3062.6,0.34023454]
[1720577741082,0.74982492,3063.8,3062.6,0.274945]
[1720577741445,0.06504835,3063.7,3062.6,0.274945]
[1720577742403,0.81467448,3063.7,3062.6,0.274945]
[1720577742572,0.06504835,3063.7,3062.6,0.274945]
[1720577743062,0.06504835,3063.7,3062.7,0.06528806]
[1720577744579,0.06504835,3063.7,3062.6,0.274945]
[1720577745896,0.06504835,3063.7,3062.6,0.34023305]
[1720577746395,0.06504835,3063.7,3062.6,0.34023307]
[1720577747595,0.06504835,3063.7,3062.7,2.4765]
[1720577747894,0.06504835,3063.7,3062.8,0.34695648]
[1720577748095,0.75002906,3063.9,3062.8,0.34695648]
[1720577748540,0.06515265,3063.8,3062.9,2.4765]
[1720577748701,0.06515265,3063.8,3063.0,0.06527705]
[1720577748998,0.74969098,3064.3,3063.0,3.06527705]
[1720577749162,0.06515265,3063.7,3063.1,0.55417771]
[1720577749495,0.74969098,3064.3,3063.2,0.06527713]
[1720577749811,0.06515265,3064.2,3063.3,2.3107]
[1720577750002,0.06515265,3064.2,3063.4,0.23759771]
[1720577750354,0.74934385,3064.5,3063.4,0.23759771]
[1720577750713,0.74934385,3064.6,3063.4,3.30286549]
[1720577750856,0.06531185,3064.5,3063.5,1.11135655]
[1720577751200,0.74934385,3065.0,3063.5,1.11135655]
[1720577751404,0.06531185,3064.4,3063.5,1.11135655]
[1720577751698,0.06567138,3064.3,3063.5,1.11135655]
[1720577751885,0.06567138,3064.3,3063.6,0.4414222]
[1720577752192,0.74934385,3065.0,3063.7,2.4761]
[1720577752193,0.74901495,3065.0,3063.7,2.4761]
[1720577752557,0.06567138,3064.9,3063.7,2.4761]
[1720577753064,0.81467388,3064.9,3063.7,2.4761]
[1720577753268,0.81467388,3064.9,3063.8,0.29175222]
[1720577753567,0.06567138,3064.9,3063.8,0.29175222]
[1720577754376,0.81461307,3064.9,3063.8,0.29175222]
[1720577755388,0.814583,3064.9,3063.8,0.29175222]
[1720577755600,0.81456359,3064.9,3063.8,0.29175222]
[1720577755909,0.81456359,3064.9,3063.9,0.27678522]
[1720577756285,0.06567138,3064.9,3063.9,0.27678522]
[1720577757727,0.81367806,3064.9,3063.9,0.27678522]
[1720577758028,1.15492538,3064.9,3063.7,2.4761]
[1720577758712,0.4069187,3064.9,3063.7,2.4761]
[1720577758875,1.15489756,3064.9,3063.7,2.4761]
[1720577759279,1.15359756,3064.9,3063.7,2.4761]
[1720577759519,0.41535976,3064.8,3063.8,0.29175222]
[1720577759894,0.06577344,3064.7,3063.8,0.29175222]
[1720577760983,5.3538,3065.1,3063.8,0.29175222]
[1720577761182,0.0657707,3064.6,3063.8,0.29175222]
[1720577761427,5.3538,3065.1,3063.8,0.29175222]
[1720577761628,0.0657707,3064.5,3063.9,0.27678522]
[1720577761790,5.3538,3065.1,3063.9,0.27678522]
[1720577761989,0.0657707,3064.4,3063.9,0.27678522]
[1720577762194,5.3538,3065.1,3063.9,0.27678522]
[1720577762405,0.0657707,3064.3,3063.9,0.27678522]
[1720577762586,5.3538,3065.1,3063.9,0.27678522]
[1720577762783,2.3538,3065.1,3063.9,0.27678522]
[1720577763085,0.06572603,3065.0,3064.0,0.06526344]
[1720577763326,0.06572603,3065.0,3063.9,0.27678522]
[1720577767533,0.06572603,3065.0,3064.0,2.4692]
[1720577773271,0.06572603,3065.0,3064.4,2.355]
[1720577773584,2.2556,3065.2,3064.1,2.66280167]
[1720577773748,2.2556,3065.2,3064.2,0.26628017]
[1720577773914,2.2556,3065.6,3064.2,0.26628017]
[1720577774305,0.06156696,3065.5,3064.2,0.26628017]
[1720577774512,0.2317167,3065.4,3064.3,0.25370802]
[1720577774711,0.2317167,3065.4,3064.4,2.2708]
[1720577774712,0.06165196,3065.3,3064.4,2.2708]
[1720577775334,3.34090018,3065.8,3064.4,2.2708]
[1720577775858,0.06169035,3065.7,3064.4,2.2708]
[1720577777532,3.06169035,3065.7,3064.4,2.2708]
[1720577777731,3.0,3065.6,3064.4,2.2708]
[1720577778036,0.66796358,3065.5,3064.4,2.2708]
[1720577778423,0.06179455,3065.5,3064.4,2.2708]
[1720577778654,3.0,3065.7,3064.4,2.2708]
[1720577778863,0.0617013,3065.4,3064.4,2.2708]
[1720577779037,0.34090018,3065.8,3064.4,2.2708]
[1720577779237,0.06170404,3065.3,3064.5,0.46910444]
[1720577779424,0.34090018,3065.8,3064.6,2.2708]
[1720577779920,0.0618055,3065.7,3064.6,2.2708]
[1720577781750,0.34096255,3066.0,3064.6,2.2708]
[1720577781940,0.60061881,3066.0,3064.8,2.2708]
[1720577782231,0.06184389,3065.9,3064.8,2.2708]
[1720577783039,0.06184389,3065.9,3064.9,2.3360402]
[1720577783346,0.06184389,3065.9,3065.1,2.2708]
[1720577783546,5.2556,3066.6,3065.1,2.2708]
[1720577783939,2.2556,3066.6,3065.1,2.2708]
[1720577784255,3.0,3067.2,3065.0,0.23360402]
[1720577784256,0.06189322,3066.5,3065.8,2.355]
[1720577784564,2.26116355,3068.0,3065.8,2.355]
[1720577784565,7.46,3068.0,3066.3,2.2708]
[1720577784765,0.34177281,3067.1,3066.4,0.63888239]
[1720577784963,0.05579511,3067.2,3066.5,0.29096824]
[1720577785167,2.2556,3068.1,3066.6,1.01034474]
[1720577785666,7.46,3068.3,3066.6,3.36534474]
[1720577785877,7.46,3068.3,3066.8,2.2708]
[1720577786032,7.46,3068.3,3066.9,0.06520208]
[1720577786229,7.46,3068.3,3066.9,1.01034258]
[1720577786967,7.46,3068.3,3066.9,0.06520208]
[1720577787265,7.46,3068.3,3066.8,2.2708]
[1720577787467,2.48771241,3067.3,3066.8,2.2708]
[1720577787677,0.05403884,3067.2,3066.2,2.2708]
[1720577787881,0.05403884,3067.2,3066.0,7.47]
[1720577788082,3.0,3066.9,3066.0,7.47]
[1720577788244,1.34794883,3066.8,3065.3,2.2708]
[1720577788428,2.2556,3066.7,3065.3,2.2708]
[1720577788625,6.30354883,3066.7,3065.3,2.2708]
[1720577788944,0.05422227,3066.6,3065.3,2.2708]
[1720577789138,0.519202,3066.5,3065.3,2.49788]
[1720577789372,0.519202,3066.5,3065.0,2.355]
[1720577789373,4.56715083,3066.5,3064.6,2.3019]
[1720577789527,4.62121157,3066.5,3064.6,2.36714555]
[1720577789735,3.52615567,3066.4,3064.7,0.47221456]
[1720577790231,0.05382244,3066.3,3064.9,2.355]
[1720577790740,2.2556,3066.7,3064.7,3.67144797]
[1720577790741,3.0,3066.5,3064.7,3.67144797]
[1720577791168,0.05382244,3066.4,3064.7,3.67144797]
[1720577791465,0.30538224,3066.3,3064.8,0.5973348]
[1720577791672,0.30538224,3066.3,3064.8,0.66257192]
[1720577792174,0.05382244,3066.2,3064.8,0.66257192]
[1720577792387,2.2556,3066.7,3064.9,0.55]
[1720577792538,0.05382244,3066.1,3065.0,0.065231]
[1720577792741,3.0,3066.8,3065.1,2.4441]
[1720577792965,0.05376214,3066.7,3065.2,0.31616207]
[1720577793181,0.05376214,3066.7,3065.2,0.86616207]
[1720577793547,0.05376214,3066.7,3065.3,0.06522394]
[1720577793884,7.46,3067.1,3065.2,0.2509331]
[1720577794040,0.05376214,3066.6,3065.2,0.2509331]
[1720577794386,7.46,3067.1,3065.3,0.58290331]
[1720577794387,0.05376214,3066.5,3065.3,0.58290331]
[1720577794754,3.0,3066.7,3065.2,0.2509331]
[1720577795081,0.05376214,3066.6,3065.2,0.2509331]
[1720577796692,0.05376214,3066.6,3064.8,3.5973348]
[1720577796693,3.0,3066.1,3064.6,2.3015]
[1720577796843,3.0,3066.0,3064.6,2.3015]
[1720577797038,3.05386627,3066.0,3064.6,2.3015]
[1720577797242,3.05386627,3066.0,3063.9,3.134]
[1720577797243,0.60538663,3065.9,3064.1,2.4741]
[1720577797453,2.2833,3065.8,3064.1,2.4741]
[1720577797676,5.8333,3065.8,3064.1,2.4741]
[1720577797985,0.49373591,3065.7,3064.2,0.24741]
[1720577798278,3.49373591,3065.7,3064.2,0.24741]
[1720577800289,3.49373591,3065.7,3064.2,0.3126573]
[1720577801981,3.49373591,3065.7,3064.2,0.24741]
[1720577802285,0.57770359,3065.6,3064.0,3.0]
[1720577802592,0.63128483,3065.6,3064.0,3.0]
[1720577802793,0.63128483,3065.6,3063.7,3.0652563]
[1720577803096,0.39715032,3065.5,3063.8,0.55021563]
[1720577803243,3.39715032,3065.5,3063.8,0.55021563]
[1720577803439,0.05356479,3065.4,3063.8,0.55021563]
[1720577803643,3.05356479,3065.4,3063.8,0.55021563]
[1720577803880,0.64507151,3065.3,3063.9,0.35502156]
[1720577804443,0.05356479,3065.2,3063.9,0.35502156]
[1720577808628,3.34021833,3065.7,3063.9,0.35502156]
[1720577808776,0.05345509,3065.1,3063.9,0.35502156]
[1720577808971,3.34021833,3065.7,3064.0,0.06525672]
[1720577809173,0.05345509,3065.6,3064.0,0.06525672]
[1720577809913,3.0,3065.5,3063.9,0.35502156]
[1720577810068,2.4342,3065.3,3063.9,0.35502156]
[1720577810564,0.05345509,3065.2,3063.9,0.35502156]
[1720577810771,0.6022206,3065.2,3063.9,0.35502156]
[1720577814919,0.34196976,3065.1,3063.9,0.35502156]
[1720577815288,0.05335637,3065.0,3063.9,0.35502156]
[1720577817509,0.05335637,3065.0,3063.9,0.42028263]
[1720577817669,0.05335637,3065.0,3063.9,0.35502156]
[1720577818728,0.05335637,3065.0,3064.0,0.0652572]
[1720577820229,0.05335637,3065.0,3064.1,2.353]
[1720577820533,0.05335637,3065.0,3064.3,2.4675]
[1720577820688,0.05335637,3065.0,3064.2,0.85707355]
[1720577820689,0.05335637,3065.0,3064.2,0.24182572]
[1720577822730,2.4879,3064.9,3064.2,0.24182572]
[1720577822930,2.4879,3064.9,3064.0,3.0]
[1720577823138,0.05343866,3064.8,3063.9,0.35502156]
[1720577824420,0.05343866,3064.8,3063.2,7.63534794]
[1720577824421,0.05343866,3064.8,3063.3,2.353]
[1720577824744,0.05343866,3064.8,3062.9,2.353]
[1720577824745,2.4435,3064.7,3062.9,2.353]
[1720577825044,3.05343866,3064.8,3063.0,0.2353]
[1720577825045,2.4435,3064.5,3063.0,0.2353]
[1720577825206,2.4435,3064.0,3061.9,2.3332]
[1720577825406,0.29768171,3063.9,3062.0,0.33999439]
[1720577825606,3.29768171,3063.9,3062.0,0.33999439]
[1720577826221,3.29768171,3063.9,3062.2,2.353]
[1720577826546,3.29768171,3063.9,3062.3,0.06528629]
[1720577826547,3.05333171,3063.9,3062.3,0.06528629]
[1720577826845,0.05333171,3063.9,3062.3,0.06528629]
[1720577827441,0.05333171,3063.9,3062.4,0.55]
[1720577827644,0.05333171,3063.9,3062.5,0.06528085]
[1720577827941,0.24968317,3063.8,3062.6,0.55]
[1720577828345,0.05276928,3063.7,3062.6,0.55]
[1720577828701,0.05276928,3063.7,3062.7,0.06528088]
[1720577828956,0.05276928,3063.7,3062.8,0.55]
[1720577829121,2.4435,3064.0,3062.8,0.61527833]
[1720577829442,2.4435,3064.0,3062.9,0.36152783]
[1720577829443,0.05282968,3063.9,3062.9,0.36152783]
[1720577830053,0.34203816,3063.8,3062.9,0.36152783]
[1720577830562,0.34203816,3063.8,3063.0,0.06527759]
[1720577830563,0.05282968,3063.7,3063.0,0.06527759]
[1720577831045,0.34203816,3063.8,3063.0,0.06527759]
[1720577831406,0.05284614,3063.7,3063.0,0.06527759]
[1720577831622,0.34203816,3063.8,3063.0,0.06527759]
[1720577832147,0.05284614,3063.7,3063.1,0.55]
[1720577832351,0.05284614,3063.7,3063.2,0.3620958]
[1720577832534,0.34203816,3063.8,3063.4,2.353]
[1720577832738,0.34203816,3063.8,3063.5,0.0652682]
[1720577832909,0.34203816,3063.8,3063.6,0.24182682]
[1720577832910,0.05287908,3063.7,3063.6,0.24182682]
[1720577833237,0.34203816,3063.8,3063.6,0.24182682]
[1720577833616,0.05287908,3063.7,3063.6,0.24182682]
[1720577833929,0.34203816,3063.8,3063.6,0.24182682]
[1720577834237,0.05287908,3063.7,3063.6,0.24182682]
[1720577834435,0.34203816,3063.8,3063.6,0.24182682]
[1720577834921,0.05287908,3063.7,3063.2,0.29682776]
[1720577835422,0.34203816,3063.8,3063.2,0.29682776]
[1720577835946,0.05299158,3063.7,3063.2,0.29682776]
[1720577836158,0.05299158,3063.7,3063.3,0.06527314]
[1720577836359,0.34203816,3063.8,3063.3,0.06527314]
[1720577836560,0.34203816,3063.8,3063.2,0.29682776]
[1720577836854,0.05297238,3063.7,3063.3,0.39495271]
[1720577837221,0.34203816,3063.8,3063.3,0.39495271]
[1720577837612,0.05297238,3063.7,3063.3,0.32968278]
[1720577837813,0.34203816,3063.8,3063.4,0.06527063]
[1720577838054,0.05297238,3063.7,3063.4,0.06527063]
[1720577838414,0.34203816,3063.8,3063.4,0.06527063]
[1720577838615,0.05297238,3063.7,3063.4,0.06527063]
[1720577838826,0.34203816,3063.8,3063.4,0.06527063]
[1720577839230,0.05297238,3063.7,3063.4,2.41827063]
[1720577839456,0.05297238,3063.7,3063.5,0.27479534]
[1720577839670,0.34203223,3064.4,3063.6,0.06526317]
[1720577839870,0.34203223,3064.4,3063.5,0.89005759]
[1720577840024,0.05306566,3064.3,3063.6,0.55567576]
[1720577840375,0.05306566,3064.3,3063.7,0.06526194]
[1720577842638,0.05306566,3064.3,3063.4,2.353]
[1720577842838,0.05306566,3064.3,3063.4,5.353]
[1720577843035,0.05306566,3064.3,3063.5,0.57479506]
[1720577843441,0.05306566,3064.3,3063.4,2.353]
[1720577843779,0.05306566,3064.3,3063.5,0.06526753]
[1720577843932,0.05306566,3064.3,3063.6,0.55]
[1720577844134,0.34203223,3064.4,3063.8,2.353]
[1720577844333,0.34203223,3064.4,3063.9,0.06525976]
[1720577844534,0.34203223,3064.4,3064.0,0.24182598]
[1720577844737,0.34203223,3064.4,3064.1,0.06526]
[1720577846256,0.34203223,3064.4,3064.0,0.24182598]
[1720577846582,0.34203223,3064.4,3063.6,0.61525993]
[1720577846789,2.4696,3064.8,3063.8,2.353]
[1720577846937,0.34196791,3065.2,3063.9,0.06525626]
[1720577847296,0.34196791,3065.2,3064.0,0.24182563]
[1720577847437,0.05326312,3065.1,3064.1,2.44685084]
[1720577847643,0.05326312,3065.1,3064.1,5.44685084]
[1720577847848,0.05326312,3065.1,3064.2,2.353]
[1720577848053,0.05326312,3065.1,3064.3,1.39522937]
[1720577848551,0.34193331,3065.6,3064.3,4.39522937]
[1720577848965,0.05329332,3065.5,3064.3,4.39522937]
[1720577849999,0.05329332,3065.5,3064.3,4.32998508]
[1720577850156,0.32578598,3065.5,3064.4,0.73354616]
[1720577850352,0.05329332,3065.5,3064.4,0.73354616]
[1720577850873,0.05329332,3065.5,3064.5,0.55]
[1720577851196,0.05329332,3065.5,3064.6,2.41824206]
[1720577851362,0.05329332,3065.5,3065.0,2.353]
[1720577851687,9.8011,3066.2,3065.0,2.353]
[1720577851688,0.05347976,3065.4,3065.1,0.06523378]
[1720577851989,0.05347976,3065.4,3065.2,0.55]
[1720577852193,2.353,3067.5,3065.3,0.06522261]
[1720577852194,0.34187444,3066.6,3065.3,0.06522261]
[1720577852352,0.34187444,3066.6,3065.4,0.55]
[1720577852555,0.05347976,3066.5,3065.5,0.06522208]
[1720577854277,0.05347976,3066.5,3065.3,0.36152226]
[1720577855279,0.32712518,3066.5,3065.3,0.36152226]
[1720577856057,0.05347976,3066.5,3065.3,0.42674833]
[1720577856266,0.05347976,3066.5,3065.4,2.903]
[1720577856456,0.05347976,3066.5,3065.5,3.06521922]
[1720577856955,0.05347976,3066.5,3065.5,5.54641922]
[1720577857158,0.05347976,3066.5,3065.5,5.4812]
[1720577858789,0.05347976,3066.5,3065.5,3.0]
[1720577859052,0.05347976,3066.5,3065.6,0.3]
[1720577859252,0.05347976,3066.5,3065.2,3.06522544]
[1720577859666,0.05347976,3066.5,3065.4,2.353]
[1720577859992,0.05347976,3066.5,3065.5,0.61521948]
[1720577860167,0.05347976,3066.5,3065.5,3.61521948]
[1720577860370,0.05347976,3066.5,3065.6,0.59682195]
[1720577863993,2.2565,3066.4,3065.6,0.59682195]
[1720577864367,0.05407732,3066.3,3065.6,0.59682195]
[1720577866287,2.2565,3066.9,3065.6,0.59682195]
[1720577866492,0.0540417,3066.2,3065.6,0.59682195]
[1720577866779,2.2565,3066.9,3065.7,0.3596822]
[1720577867293,0.0540417,3066.8,3065.7,0.3596822]
[1720577867879,0.0540417,3066.8,3065.5,3.0]
[1720577868073,0.0540417,3066.8,3065.4,2.353]
[1720577870915,2.2731,3066.7,3065.2,3.0]
[1720577871088,2.2731,3066.7,3065.1,5.54642747]
[1720577871410,0.28680244,3066.6,3065.2,1.33994275]
[1720577871614,0.28680244,3066.6,3065.2,4.33994275]
[1720577872188,0.28680244,3066.6,3065.2,3.78994275]
[1720577873421,2.2731,3066.5,3064.7,2.57422421]
[1720577873577,2.32715539,3066.4,3064.7,2.57422421]
[1720577874895,0.3418963,3066.3,3064.8,3.0]
[1720577875094,0.3418963,3066.3,3065.0,2.353]
[1720577875095,3.87461184,3066.3,3065.0,2.353]
[1720577875299,3.87461184,3066.3,3065.1,0.06523562]
[1720577875300,0.05388548,3066.2,3065.1,0.06523562]
[1720577875804,0.05388548,3066.2,3065.1,0.06523137]
[1720577875993,0.05388548,3066.2,3065.0,2.353]
[1720577876187,0.05388548,3066.2,3065.1,0.36279675]
[1720577878109,0.05388548,3066.2,3065.1,0.29756538]
[1720577878634,0.05388548,3066.2,3065.3,2.3545]
[1720577878864,0.05388548,3066.2,3065.3,2.4197248]
[1720577878977,0.05388548,3066.2,3065.3,5.3545]
[1720577879179,0.3418963,3066.3,3065.4,0.59045]
[1720577879587,0.05395674,3066.2,3065.1,3.29756538]
[1720577880822,0.05395674,3066.2,3065.2,0.61523154]
[1720577881196,0.3418963,3066.3,3065.2,0.61523154]
[1720577881400,0.3418963,3066.3,3065.4,2.353]
[1720577881711,0.05400881,3066.2,3065.5,0.2353]
[1720577882018,0.3418963,3066.3,3065.5,0.2353]
[1720577882408,0.05400881,3066.2,3065.1,3.29756538]
[1720577882592,0.3418963,3066.3,3065.1,3.29756538]
[1720577883003,0.05403895,3066.2,3065.1,0.29756538]
[1720577883186,2.4376,3066.1,3065.1,0.29756538]
[1720577883383,0.30319736,3066.0,3065.1,0.29756538]
[1720577883600,0.30319736,3066.0,3064.7,3.41378386]
[1720577883798,0.30319736,3066.0,3064.8,0.55]
[1720577885098,0.30319736,3066.0,3064.2,0.16485471]
[1720577885099,2.4106,3065.9,3064.2,2.353]
[1720577885629,2.4106,3065.9,3063.5,1.02075719]
[1720577885630,2.4644718,3065.8,3063.8,4.7607]
[1720577885833,2.4644718,3065.8,3063.9,0.06525215]
[1720577887119,2.4644718,3065.8,3064.0,0.55]